Workbook

Sheet الارصدة
A1: كود | B1: الاسم | C1: بداية المدة | D1: تنزيلات | E1: المتبقى
A2: 27 | B2: سماح | C2: =SUMIF('قاعدة البيانات'!B:B,A2,'قاعدة البيانات'!E:E) -> 2115 | D2: =SUMIF('قاعدة البيانات'!B:B,A2,'قاعدة البيانات'!F:F) -> 1410 | E2: =C2-D2 -> 705
A3: 29 | B3: سلف | C3: =SUMIF('قاعدة البيانات'!B:B,A3,'قاعدة البيانات'!E:E) -> 4500 | D3: =SUMIF('قاعدة البيانات'!B:B,A3,'قاعدة البيانات'!F:F) -> 2000 | E3: =C3-D3 -> 2500
A4: 50 | B4: ام سحر | C4: =SUMIF('قاعدة البيانات'!B:B,A4,'قاعدة البيانات'!E:E) -> 6660 | D4: =SUMIF('قاعدة البيانات'!B:B,A4,'قاعدة البيانات'!F:F) -> 1000 | E4: =C4-D4 -> 5660
A5: 55 | B5: دعاء سلام | C5: =SUMIF('قاعدة البيانات'!B:B,A5,'قاعدة البيانات'!E:E) -> 2000 | D5: =SUMIF('قاعدة البيانات'!B:B,A5,'قاعدة البيانات'!F:F) -> 1500 | E5: =C5-D5 -> 500
A6: 57 | B6: بسام درويش | C6: =SUMIF('قاعدة البيانات'!B:B,A6,'قاعدة البيانات'!E:E) -> 2300 | D6: =SUMIF('قاعدة البيانات'!B:B,A6,'قاعدة البيانات'!F:F) -> 1600 | E6: 700
A7: 59 | B7: تامر | C7: =SUMIF('قاعدة البيانات'!B:B,A7,'قاعدة البيانات'!E:E) -> 1800 | D7: =SUMIF('قاعدة البيانات'!B:B,A7,'قاعدة البيانات'!F:F) -> 1600 | E7: =C7-D7 -> 200
A8: 60 | B8: سعاد وهيب | C8: =SUMIF('قاعدة البيانات'!B:B,A8,'قاعدة البيانات'!E:E) -> 180 | D8: =SUMIF('قاعدة البيانات'!B:B,A8,'قاعدة البيانات'!F:F) -> 80 | E8: 100
A9: 61 | B9: مايكل 2 | C9: =SUMIF('قاعدة البيانات'!B:B,A9,'قاعدة البيانات'!E:E) -> 3400 | D9: =SUMIF('قاعدة البيانات'!B:B,A9,'قاعدة البيانات'!F:F) -> 3100 | E9: 300
A10: 66 | B10: موسى محمد عبدالغنى /كيسة | C10: =SUMIF('قاعدة البيانات'!B:B,A10,'قاعدة البيانات'!E:E) -> 2430 | D10: =SUMIF('قاعدة البيانات'!B:B,A10,'قاعدة البيانات'!F:F) -> 1800 | E10: =C10-D10 -> 630
A11: 68 | B11: موسى محمد عبدالغنى/جراند نيو | C11: =SUMIF('قاعدة البيانات'!B:B,A11,'قاعدة البيانات'!E:E) -> 6400 | D11: =SUMIF('قاعدة البيانات'!B:B,A11,'قاعدة البيانات'!F:F) -> 3400 | E11: 3000
A12: 70 | B12: موسى محمد عبدالغنى /جراند2 | C12: =SUMIF('قاعدة البيانات'!B:B,A12,'قاعدة البيانات'!E:E) -> 2500 | D12: =SUMIF('قاعدة البيانات'!B:B,A12,'قاعدة البيانات'!F:F) -> 1400 | E12: 1100
A13: 71 | B13: دعاء سيد احمد | C13: =SUMIF('قاعدة البيانات'!B:B,A13,'قاعدة البيانات'!E:E) -> 2550 | D13: =SUMIF('قاعدة البيانات'!B:B,A13,'قاعدة البيانات'!F:F) -> 1850 | E13: 700
A14: 72 | B14: صالح محمود 2 | C14: =SUMIF('قاعدة البيانات'!B:B,A14,'قاعدة البيانات'!E:E) -> 1575 | D14: =SUMIF('قاعدة البيانات'!B:B,A14,'قاعدة البيانات'!F:F) -> 1235 | E14: =C14-D14 -> 340
A15: 73 | B15: موسى محمد عبدالغنى- جراند باير | C15: =SUMIF('قاعدة البيانات'!B:B,A15,'قاعدة البيانات'!E:E) -> 2300 | D15: =SUMIF('قاعدة البيانات'!B:B,A15,'قاعدة البيانات'!F:F) -> 1300 | E15: 1000
A16: 74 | B16: موسى محمد عبدالغنى /2موبايل | C16: =SUMIF('قاعدة البيانات'!B:B,A16,'قاعدة البيانات'!E:E) -> 4550 | D16: =SUMIF('قاعدة البيانات'!B:B,A16,'قاعدة البيانات'!F:F) -> 2300 | E16: 2250
A17: 75 | B17: موسى محمد عبدالغنى- جراند باير2 | C17: =SUMIF('قاعدة البيانات'!B:B,A17,'قاعدة البيانات'!E:E) -> 2450 | D17: =SUMIF('قاعدة البيانات'!B:B,A17,'قاعدة البيانات'!F:F) -> 1500 | E17: 950
A18: 77 | B18: موسى جراند -بدون مقدم | C18: =SUMIF('قاعدة البيانات'!B:B,A18,'قاعدة البيانات'!E:E) -> 2550 | D18: =SUMIF('قاعدة البيانات'!B:B,A18,'قاعدة البيانات'!F:F) -> 1200 | E18: 1350
A19: 78 | B19: موسى جراند -بدون مقدم2 | C19: =SUMIF('قاعدة البيانات'!B:B,A19,'قاعدة البيانات'!E:E) -> 3150 | D19: =SUMIF('قاعدة البيانات'!B:B,A19,'قاعدة البيانات'!F:F) -> 1400 | E19: =C19-D19 -> 1750
A20: 80 | B20: اخت ام عمرو | C20: 700 | D20: =SUMIF('قاعدة البيانات'!B:B,A20,'قاعدة البيانات'!F:F) -> 0 | E20: =C20-D20 -> 700
A21: 81 | B21: موسى محمد - نود4 - عبدالرازق | C21: =SUMIF('قاعدة البيانات'!B:B,A21,'قاعدة البيانات'!E:E) -> 7500 | D21: =SUMIF('قاعدة البيانات'!B:B,A21,'قاعدة البيانات'!F:F) -> 4240 | E21: 3260
A22: 82 | B22: موسى محمد - نود2 | C22: =SUMIF('قاعدة البيانات'!B:B,A22,'قاعدة البيانات'!E:E) -> 2500 | D22: =SUMIF('قاعدة البيانات'!B:B,A22,'قاعدة البيانات'!F:F) -> 1260 | E22: 1240
A23: 83 | B23: نهاد حجازى | C23: =SUMIF('قاعدة البيانات'!B:B,A23,'قاعدة البيانات'!E:E) -> 1300 | D23: =SUMIF('قاعدة البيانات'!B:B,A23,'قاعدة البيانات'!F:F) -> 1150 | E23: 150
A24: 84 | B24: رشا-اكسبيريا z-r | C24: =SUMIF('قاعدة البيانات'!B:B,A24,'قاعدة البيانات'!E:E) -> 2350 | D24: =SUMIF('قاعدة البيانات'!B:B,A24,'قاعدة البيانات'!F:F) -> 1300 | E24: =C24-D24 -> 1050
A25: 85 | B25: نود2- عبدالرازق | C25: =SUMIF('قاعدة البيانات'!B:B,A25,'قاعدة البيانات'!E:E) -> 5200 | D25: =SUMIF('قاعدة البيانات'!B:B,A25,'قاعدة البيانات'!F:F) -> 2750 | E25: 2450
A26: 86 | B26: موسى S3new | C26: =SUMIF('قاعدة البيانات'!B:B,A26,'قاعدة البيانات'!E:E) -> 2425 | D26: =SUMIF('قاعدة البيانات'!B:B,A26,'قاعدة البيانات'!F:F) -> 1350 | E26: 1075
A27: 88 | B27: دعاء-اكسبيرياz-r | C27: =SUMIF('قاعدة البيانات'!B:B,A27,'قاعدة البيانات'!E:E) -> 1350 | D27: =SUMIF('قاعدة البيانات'!B:B,A27,'قاعدة البيانات'!F:F) -> 1100 | E27: 250
A28: 89 | B28: موسى- تكنو | C28: =SUMIF('قاعدة البيانات'!B:B,A28,'قاعدة البيانات'!E:E) -> 800 | D28: =SUMIF('قاعدة البيانات'!B:B,A28,'قاعدة البيانات'!F:F) -> 350 | E28: 450
A29: 90 | B29: محمد الحنفى | C29: =SUMIF('قاعدة البيانات'!B:B,A29,'قاعدة البيانات'!E:E) -> 2800 | D29: =SUMIF('قاعدة البيانات'!B:B,A29,'قاعدة البيانات'!F:F) -> 2200 | E29: =C29-D29 -> 600
A30: 91 | B30: عاطف شوقى الشيخ | C30: =SUMIF('قاعدة البيانات'!B:B,A30,'قاعدة البيانات'!E:E) -> 480 | D30: =SUMIF('قاعدة البيانات'!B:B,A30,'قاعدة البيانات'!F:F) -> 250 | E30: 230
A31: 92 | B31: صلاح محمود 2 | C31: =SUMIF('قاعدة البيانات'!B:B,A31,'قاعدة البيانات'!E:E) -> 1950 | D31: =SUMIF('قاعدة البيانات'!B:B,A31,'قاعدة البيانات'!F:F) -> 700 | E31: 1250
A32: 93 | B32: موسى 2مروحة | C32: =SUMIF('قاعدة البيانات'!B:B,A32,'قاعدة البيانات'!E:E) -> 960 | D32: =SUMIF('قاعدة البيانات'!B:B,A32,'قاعدة البيانات'!F:F) -> 300 | E32: 660
A33: 95 | B33: محمد حبيب | C33: =SUMIF('قاعدة البيانات'!B:B,A33,'قاعدة البيانات'!E:E) -> 1800 | D33: =SUMIF('قاعدة البيانات'!B:B,A33,'قاعدة البيانات'!F:F) -> 800 | E33: 1000
A34: 96 | B34: محمد الفولى | C34: =SUMIF('قاعدة البيانات'!B:B,A34,'قاعدة البيانات'!E:E) -> 2800 | D34: =SUMIF('قاعدة البيانات'!B:B,A34,'قاعدة البيانات'!F:F) -> 2300 | E34: =C34-D34 -> 500
A35: 97 | B35: ساندى | C35: =SUMIF('قاعدة البيانات'!B:B,A35,'قاعدة البيانات'!E:E) -> 600 | D35: =SUMIF('قاعدة البيانات'!B:B,A35,'قاعدة البيانات'!F:F) -> 300 | E35: 300
A36: 98 | B36: s3 - موسى محمد | C36: =SUMIF('قاعدة البيانات'!B:B,A36,'قاعدة البيانات'!E:E) -> 4550 | D36: =SUMIF('قاعدة البيانات'!B:B,A36,'قاعدة البيانات'!F:F) -> 1300 | E36: 3250
A37: 99 | B37: موسى محمد - جلاكسى كور | C37: =SUMIF('قاعدة البيانات'!B:B,A37,'قاعدة البيانات'!E:E) -> 1500 | D37: =SUMIF('قاعدة البيانات'!B:B,A37,'قاعدة البيانات'!F:F) -> 530 | E37: 970
A38: 100 | B38: موسى محمد - جلاكسى | C38: =SUMIF('قاعدة البيانات'!B:B,A38,'قاعدة البيانات'!E:E) -> 1270 | D38: =SUMIF('قاعدة البيانات'!B:B,A38,'قاعدة البيانات'!F:F) -> 450 | E38: 820
A39: 101 | B39: موسى محمد - جراند2 | C39: =SUMIF('قاعدة البيانات'!B:B,A39,'قاعدة البيانات'!E:E) -> 2310 | D39: =SUMIF('قاعدة البيانات'!B:B,A39,'قاعدة البيانات'!F:F) -> 840 | E39: 1470
A40: 102 | B40: حنان الحنفى | C40: =SUMIF('قاعدة البيانات'!B:B,A40,'قاعدة البيانات'!E:E) -> 350 | D40: =SUMIF('قاعدة البيانات'!B:B,A40,'قاعدة البيانات'!F:F) -> 200 | E40: =C40-D40 -> 150
A41: 103 | B41: تامر2 | C41: =SUMIF('قاعدة البيانات'!B:B,A41,'قاعدة البيانات'!E:E) -> 650 | D41: =SUMIF('قاعدة البيانات'!B:B,A41,'قاعدة البيانات'!F:F) -> 300 | E41: 350
A42: 105 | B42: موسى مكنسة | C42: =SUMIF('قاعدة البيانات'!B:B,A42,'قاعدة البيانات'!E:E) -> 650 | D42: =SUMIF('قاعدة البيانات'!B:B,A42,'قاعدة البيانات'!F:F) -> 100 | E42: 550
A43: 106 | B43: s3new-musa | C43: =SUMIF('قاعدة البيانات'!B:B,A43,'قاعدة البيانات'!E:E) -> 2320 | D43: =SUMIF('قاعدة البيانات'!B:B,A43,'قاعدة البيانات'!F:F) -> 800 | E43: 1520
A44: 107 | B44: not2-2 | C44: =SUMIF('قاعدة البيانات'!B:B,A44,'قاعدة البيانات'!E:E) -> 2450 | D44: =SUMIF('قاعدة البيانات'!B:B,A44,'قاعدة البيانات'!F:F) -> 830 | E44: 1620
A45: 108 | B45: not2-3 | C45: =SUMIF('قاعدة البيانات'!B:B,A45,'قاعدة البيانات'!E:E) -> 2450 | D45: =SUMIF('قاعدة البيانات'!B:B,A45,'قاعدة البيانات'!F:F) -> 830 | E45: 1620
A46: 109 | B46: not3-2 | C46: =SUMIF('قاعدة البيانات'!B:B,A46,'قاعدة البيانات'!E:E) -> 3380 | D46: =SUMIF('قاعدة البيانات'!B:B,A46,'قاعدة البيانات'!F:F) -> 900 | E46: 2480
A47: 110 | B47: e5 | C47: =SUMIF('قاعدة البيانات'!B:B,A47,'قاعدة البيانات'!E:E) -> 3575 | D47: =SUMIF('قاعدة البيانات'!B:B,A47,'قاعدة البيانات'!F:F) -> 1075 | E47: 2500
A48: 112 | B48: محمد السيسى | C48: =SUMIF('قاعدة البيانات'!B:B,A48,'قاعدة البيانات'!E:E) -> 300 | D48: =SUMIF('قاعدة البيانات'!B:B,A48,'قاعدة البيانات'!F:F) -> 150 | E48: =C48-D48 -> 150
A49: 113 | B49: ام عمرو G1 | C49: =SUMIF('قاعدة البيانات'!B:B,A49,'قاعدة البيانات'!E:E) -> 1300 | D49: =SUMIF('قاعدة البيانات'!B:B,A49,'قاعدة البيانات'!F:F) -> 400 | E49: 900
A50: 114 | B50: ام عمرو3000 | C50: =SUMIF('قاعدة البيانات'!B:B,A50,'قاعدة البيانات'!E:E) -> 4000 | D50: =SUMIF('قاعدة البيانات'!B:B,A50,'قاعدة البيانات'!F:F) -> 800 | E50: 3200
A51: 115 | B51: musa-note4 | C51: =SUMIF('قاعدة البيانات'!B:B,A51,'قاعدة البيانات'!E:E) -> 6760 | D51: =SUMIF('قاعدة البيانات'!B:B,A51,'قاعدة البيانات'!F:F) -> 1550 | E51: 5210
A52: 116 | B52: musa-note3-3 | C52: =SUMIF('قاعدة البيانات'!B:B,A52,'قاعدة البيانات'!E:E) -> 4875 | D52: =SUMIF('قاعدة البيانات'!B:B,A52,'قاعدة البيانات'!F:F) -> 1010 | E52: 3865
A53: 117 | B53: musa-amr | C53: =SUMIF('قاعدة البيانات'!B:B,A53,'قاعدة البيانات'!E:E) -> 1200 | D53: =SUMIF('قاعدة البيانات'!B:B,A53,'قاعدة البيانات'!F:F) -> 75 | E53: 1125
A54: 118 | B54: عبير موسى | C54: =SUMIF('قاعدة البيانات'!B:B,A54,'قاعدة البيانات'!E:E) -> 935 | D54: =SUMIF('قاعدة البيانات'!B:B,A54,'قاعدة البيانات'!F:F) -> 250 | E54: 685
A55: 119 | B55: جراند نيو بلص-أيمن | C55: =SUMIF('قاعدة البيانات'!B:B,A55,'قاعدة البيانات'!E:E) -> 1600 | D55: =SUMIF('قاعدة البيانات'!B:B,A55,'قاعدة البيانات'!F:F) -> 400 | E55: 1200
A56: 120 | B56: محمد طعيمة | C56: =SUMIF('قاعدة البيانات'!B:B,A56,'قاعدة البيانات'!E:E) -> 850 | D56: =SUMIF('قاعدة البيانات'!B:B,A56,'قاعدة البيانات'!F:F) -> 700 | E56: 150
A57: 121 | B57: موسى j7 | C57: =SUMIF('قاعدة البيانات'!B:B,A57,'قاعدة البيانات'!E:E) -> 5850 | D57: =SUMIF('قاعدة البيانات'!B:B,A57,'قاعدة البيانات'!F:F) -> 0 | E57: 5850
A58: 122 | B58: موسى j5 | C58: =SUMIF('قاعدة البيانات'!B:B,A58,'قاعدة البيانات'!E:E) -> 2340 | D58: =SUMIF('قاعدة البيانات'!B:B,A58,'قاعدة البيانات'!F:F) -> 500 | E58: 1840
A59: 123 | B59: ابراهيم شوقى بدر | C59: =SUMIF('قاعدة البيانات'!B:B,A59,'قاعدة البيانات'!E:E) -> 1150 | D59: =SUMIF('قاعدة البيانات'!B:B,A59,'قاعدة البيانات'!F:F) -> 800 | E59: 350
A60: 124 | B60: محمد ثروت | C60: =SUMIF('قاعدة البيانات'!B:B,A60,'قاعدة البيانات'!E:E) -> 1650 | D60: =SUMIF('قاعدة البيانات'!B:B,A60,'قاعدة البيانات'!F:F) -> 0 | E60: 1650
A61: 125 | B61: musa-note3-4 | C61: =SUMIF('قاعدة البيانات'!B:B,A61,'قاعدة البيانات'!E:E) -> 2750 | D61: =SUMIF('قاعدة البيانات'!B:B,A61,'قاعدة البيانات'!F:F) -> 0 | E61: 2750
A62: 126 | B62: musa-note3-5 | C62: =SUMIF('قاعدة البيانات'!B:B,A62,'قاعدة البيانات'!E:E) -> 2000 | D62: =SUMIF('قاعدة البيانات'!B:B,A62,'قاعدة البيانات'!F:F) -> 0 | E62: 2000
A63: 128 | B63: منى | C63: =SUMIF('قاعدة البيانات'!B:B,A63,'قاعدة البيانات'!E:E) -> 650 | D63: =SUMIF('قاعدة البيانات'!B:B,A63,'قاعدة البيانات'!F:F) -> 0 | E63: 650
A64: 129 | B64: جى1-حلامشة | C64: =SUMIF('قاعدة البيانات'!B:B,A64,'قاعدة البيانات'!E:E) -> 1300 | D64: =SUMIF('قاعدة البيانات'!B:B,A64,'قاعدة البيانات'!F:F) -> 0 | E64: 1300
A65: 130 | B65: محمد طعيمة-صب | C65: =SUMIF('قاعدة البيانات'!B:B,A65,'قاعدة البيانات'!E:E) -> 350 | D65: =SUMIF('قاعدة البيانات'!B:B,A65,'قاعدة البيانات'!F:F) -> 150 | E65: 200
A66: 131 | B66: دنيا سونى اكسبيريا2 | C66: =SUMIF('قاعدة البيانات'!B:B,A66,'قاعدة البيانات'!E:E) -> 2800 | D66: =SUMIF('قاعدة البيانات'!B:B,A66,'قاعدة البيانات'!F:F) -> 1000 | E66: 1800
A67: 132 | B67: MUSA2-J7 | C67: =SUMIF('قاعدة البيانات'!B:B,A67,'قاعدة البيانات'!E:E) -> 5850 | D67: =SUMIF('قاعدة البيانات'!B:B,A67,'قاعدة البيانات'!F:F) -> 1000 | E67: 4850
A68: 133 | B68: NOKIA225-2 | C68: =SUMIF('قاعدة البيانات'!B:B,A68,'قاعدة البيانات'!E:E) -> 800 | D68: =SUMIF('قاعدة البيانات'!B:B,A68,'قاعدة البيانات'!F:F) -> 0 | E68: 800
A69: 134 | B69: om amr | C69: =SUMIF('قاعدة البيانات'!B:B,A69,'قاعدة البيانات'!E:E) -> 6600 | D69: =SUMIF('قاعدة البيانات'!B:B,A69,'قاعدة البيانات'!F:F) -> 300 | E69: 6300
A70: 135 | B70: ثروت | C70: =SUMIF('قاعدة البيانات'!B:B,A70,'قاعدة البيانات'!E:E) -> 510 | D70: =SUMIF('قاعدة البيانات'!B:B,A70,'قاعدة البيانات'!F:F) -> 0 | E70: 510
A71: 136 | B71: musa-j1--1/11 | C71: =SUMIF('قاعدة البيانات'!B:B,A71,'قاعدة البيانات'!E:E) -> 1300 | D71: =SUMIF('قاعدة البيانات'!B:B,A71,'قاعدة البيانات'!F:F) -> 0 | E71: 1300
A72: 137 | B72: G130 | C72: =SUMIF('قاعدة البيانات'!B:B,A72,'قاعدة البيانات'!E:E) -> 775 | D72: =SUMIF('قاعدة البيانات'!B:B,A72,'قاعدة البيانات'!F:F) -> 0 | E72: 775
A73: 138 | B73: nokIA225-3 | C73: =SUMIF('قاعدة البيانات'!B:B,A73,'قاعدة البيانات'!E:E) -> 800 | D73: =SUMIF('قاعدة البيانات'!B:B,A73,'قاعدة البيانات'!F:F) -> 0 | E73: 800
A74: 139 | B74: عزيزة | C74: =SUMIF('قاعدة البيانات'!B:B,A74,'قاعدة البيانات'!E:E) -> 420 | D74: =SUMIF('قاعدة البيانات'!B:B,A74,'قاعدة البيانات'!F:F) -> 100 | E74: 320
A75: 140 | B75: رامى شوقى عبده | C75: =SUMIF('قاعدة البيانات'!B:B,A75,'قاعدة البيانات'!E:E) -> 1900 | D75: =SUMIF('قاعدة البيانات'!B:B,A75,'قاعدة البيانات'!F:F) -> 500 | E75: 1400
A76: 141 | B76: دنيا سونى اكسبيريا2-2 | C76: =SUMIF('قاعدة البيانات'!B:B,A76,'قاعدة البيانات'!E:E) -> 2450 | D76: =SUMIF('قاعدة البيانات'!B:B,A76,'قاعدة البيانات'!F:F) -> 800 | E76: 1650
A77: 142 | B77: السيدG5 | C77: =SUMIF('قاعدة البيانات'!B:B,A77,'قاعدة البيانات'!E:E) -> 2300 | D77: =SUMIF('قاعدة البيانات'!B:B,A77,'قاعدة البيانات'!F:F) -> 500 | E77: 1800
A78: 143 | B78: رشا هاواوىb8 | C78: =SUMIF('قاعدة البيانات'!B:B,A78,'قاعدة البيانات'!E:E) -> 2550 | D78: =SUMIF('قاعدة البيانات'!B:B,A78,'قاعدة البيانات'!F:F) -> 500 | E78: 2050
A79: 144 | B79: ام عمرو جى7 | C79: =SUMIF('قاعدة البيانات'!B:B,A79,'قاعدة البيانات'!E:E) -> 3250 | D79: =SUMIF('قاعدة البيانات'!B:B,A79,'قاعدة البيانات'!F:F) -> 0 | E79: 3250
A80: 145 | B80: شاشة عمرو | C80: =SUMIF('قاعدة البيانات'!B:B,A80,'قاعدة البيانات'!E:E) -> 350 | D80: =SUMIF('قاعدة البيانات'!B:B,A80,'قاعدة البيانات'!F:F) -> 0 | E80: 350
A81: 146 | B81: نوكيا 225اسبوعى | C81: =SUMIF('قاعدة البيانات'!B:B,A81,'قاعدة البيانات'!E:E) -> 400 | D81: =SUMIF('قاعدة البيانات'!B:B,A81,'قاعدة البيانات'!F:F) -> 0 | E81: 400
A82: 147 | C82: =SUMIF('قاعدة البيانات'!B:B,A82,'قاعدة البيانات'!E:E) -> 0 | D82: =SUMIF('قاعدة البيانات'!B:B,A82,'قاعدة البيانات'!F:F) -> 0 | E82: 0
A83: 148 | C83: =SUMIF('قاعدة البيانات'!B:B,A83,'قاعدة البيانات'!E:E) -> 0 | D83: =SUMIF('قاعدة البيانات'!B:B,A83,'قاعدة البيانات'!F:F) -> 0 | E83: 0
A84: 149 | C84: =SUMIF('قاعدة البيانات'!B:B,A84,'قاعدة البيانات'!E:E) -> 0 | D84: =SUMIF('قاعدة البيانات'!B:B,A84,'قاعدة البيانات'!F:F) -> 0 | E84: 0
A85: 150 | C85: =SUMIF('قاعدة البيانات'!B:B,A85,'قاعدة البيانات'!E:E) -> 0 | D85: =SUMIF('قاعدة البيانات'!B:B,A85,'قاعدة البيانات'!F:F) -> 0 | E85: 0

Sheet DATA
A1: كود العميل | B1: الاسم
A2: 1 | B2: محمد 1
A3: 2 | B3: محمد 2
A4: 3 | B4: محمد 3
A5: 4 | B5: محمد 4
A6: 5 | B6: حمادة بسام
A7: 6 | B7: محمد 6
A8: 7 | B8: محمد 7
A9: 8 | B9: محمد 8
A10: 9 | B10: علياء
A11: 10 | B11: محمد 10
A12: 11 | B12: محمد 11
A13: 12 | B13: محمد 12
A14: 13 | B14: محمد 13
A15: 14 | B15: محمد 14
A16: 15 | B16: هانى صلاح
A17: 16 | B17: محمد 16
A18: 17 | B18: محمد 17
A19: 18 | B19: محمد 18
A20: 19 | B20: محمد 19
A21: 20 | B21: محمد 20
A22: 21 | B22: مصطفى ليلة
A23: 22 | B23: محمد 22
A24: 23 | B24: محمد 23
A25: 24 | B25: محمد 24
A26: 25 | B26: نهاد
A27: 26 | B27: محمد 26
A28: 27 | B28: سماح
A29: 28 | B29: محمد 28
A30: 29 | B30: سلف
A31: 30 | B31: محمد 30
A32: 31 | B32: محمد 31
A33: 32 | B33: محمد 32
A34: 33 | B34: محمد 33
A35: 34 | B35: باسم النجار
A36: 35 | B36: محمد 35
A37: 36 | B37: محمد 36
A38: 37 | B38: محمد 37
A39: 38 | B39: محمد 38
A40: 39 | B40: محمد 39
A41: 40 | B41: محمد 40
A42: 41 | B42: محمد 41
A43: 42 | B43: محمد 42
A44: 43 | B44: محمد 43
A45: 44 | B45: محمد 44
A46: 45 | B46: محمد 45
A47: 46 | B47: محمد 46
A48: 47 | B48: محمد 47
A49: 48 | B49: محمد 48
A50: 49 | B50: محمد 49
A51: 50 | B51: ام سحر
A52: 51 | B52: محمد 51
A53: 52 | B53: محمد 52
A54: 53 | B54: محمد 53
A55: 54 | B55: محمد 54
A56: 55 | B56: دعاء سلام
A57: 56 | B57: محمد 56
A58: 57 | B58: بسام درويش
A59: 58 | B59: محمد 58
A60: 59 | B60: تامر
A61: 60 | B61: سعاد وهيب
A62: 61 | B62: مايكل 2
A63: 62 | B63: محمد 62
A64: 63 | B64: محمد 63
A65: 64 | B65: محمد 64
A66: 65 | B66: محمد 65
A67: 66 | B67: موسى محمد عبدالغنى /كيسة
A68: 67 | B68: محمد 67
A69: 68 | B69: موسى محمد عبدالغنى/جراند نيو
A70: 69 | B70: محمد 69
A71: 70 | B71: موسى محمد عبدالغنى /جراند2
A72: 71 | B72: دعاء سيد احمد
A73: 72 | B73: صالح محمود 2
A74: 73 | B74: موسى محمد عبدالغنى- جراند باير
A75: 74 | B75: موسى محمد عبدالغنى /2موبايل
A76: 75 | B76: موسى محمد عبدالغنى- جراند باير2
A77: 76 | B77: محمد 76
A78: 77 | B78: موسى جراند -بدون مقدم
A79: 78 | B79: موسى جراند -بدون مقدم2
A80: 79 | B80: محمد 79
A81: 80 | B81: اخت ام عمرو
A82: 81 | B82: موسى محمد - نود4 - عبدالرازق
A83: 82 | B83: موسى محمد - نود2
A84: 83 | B84: نهاد حجازى
A85: 84 | B85: رشا-اكسبيريا z-r
A86: 85 | B86: نود2- عبدالرازق
A87: 86 | B87: موسى S3new
A88: 87 | B88: محمد 87
A89: 88 | B89: دعاء-اكسبيرياz-r
A90: 89 | B90: موسى- تكنو
A91: 90 | B91: محمد الحنفى
A92: 91 | B92: عاطف شوقى الشيخ
A93: 92 | B93: صلاح محمود 2
A94: 93 | B94: موسى 2مروحة
A95: 94 | B95: محمد 94
A96: 95 | B96: محمد حبيب
A97: 96 | B97: محمد الفولى
A98: 97 | B98: ساندى
A99: 98 | B99: s3 - موسى محمد
A100: 99 | B100: موسى محمد - جلاكسى كور
A101: 100 | B101: موسى محمد - جلاكسى
A102: 101 | B102: موسى محمد - جراند2
A103: 102 | B103: حنان الحنفى
A104: 103 | B104: تامر2
A105: 104 | B105: محمد 104
A106: 105 | B106: موسى مكنسة
A107: 106 | B107: s3new-musa
A108: 107 | B108: not2-2
A109: 108 | B109: not2-3
A110: 109 | B110: not3-2
A111: 110 | B111: e5
A112: 111 | B112: محمد 111
A113: 112 | B113: محمد السيسى
A114: 113 | B114: ام عمرو G1
A115: 114 | B115: ام عمرو3000
A116: 115 | B116: musa-note4
A117: 116 | B117: musa-note3-3
A118: 117 | B118: musa-amr
A119: 118 | B119: عبير موسى
A120: 119 | B120: جراند نيو بلص-أيمن
A121: 120 | B121: محمد طعيمة
A122: 121 | B122: موسى j7
A123: 122 | B123: موسى j5
A124: 123 | B124: ابراهيم شوقى بدر
A125: 124 | B125: محمد ثروت
A126: 125 | B126: musa-note3-4
A127: 126 | B127: musa-note3-5
A128: 127 | B128: محمد 127
A129: 128 | B129: منى
A130: 129 | B130: جى1-حلامشة
A131: 130 | B131: محمد طعيمة-صب
A132: 131 | B132: دنيا سونى اكسبيريا2
A133: 132 | B133: MUSA2-J7
A134: 133 | B134: NOKIA225-2
A135: 134 | B135: om amr
A136: 135 | B136: ثروت
A137: 136 | B137: musa-j1--1/11
A138: 137 | B138: G130
A139: 138 | B139: nokIA225-3
A140: 139 | B140: عزيزة
A141: 140 | B141: رامى شوقى عبده
A142: 141 | B142: دنيا سونى اكسبيريا2-2
A143: 142 | B143: السيدG5
A144: 143 | B144: رشا هاواوىb8
A145: 144 | B145: ام عمرو جى7
A146: 145 | B146: شاشة عمرو
A147: 146 | B147: نوكيا 225اسبوعى
A148: 147 | B148: محمد 147
A149: 148 | B149: محمد 148
A150: 149 | B150: محمد 149
A151: 150 | B151: محمد 150
A152: 151 | B152: محمد 151
A153: 152 | B153: محمد 152
A154: 153 | B154: محمد 153
A155: 154 | B155: محمد 154
A156: 155 | B156: محمد 155
A157: 156 | B157: محمد 156
A158: 157 | B158: محمد 157
A159: 158 | B159: محمد 158
A160: 159 | B160: محمد 159
A161: 160 | B161: محمد 160
A162: 161 | B162: محمد 161
A163: 162 | B163: محمد 162
A164: 163 | B164: محمد 163
A165: 164 | B165: محمد 164
A166: 165 | B166: محمد 165
A167: 166 | B167: محمد 166
A168: 167 | B168: محمد 167
A169: 168 | B169: محمد 168
A170: 169 | B170: محمد 169
A171: 170 | B171: محمد 170
A172: 171 | B172: محمد 171
A173: 172 | B173: محمد 172
A174: 173 | B174: محمد 173
A175: 174 | B175: محمد 174
A176: 175 | B176: محمد 175
A177: 176 | B177: محمد 176
A178: 177 | B178: محمد 177
A179: 178 | B179: محمد 178
A180: 179 | B180: محمد 179
A181: 180 | B181: محمد 180
A182: 181 | B182: محمد 181
A183: 182 | B183: محمد 182
A184: 183 | B184: محمد 183
A185: 184 | B185: محمد 184
A186: 185 | B186: محمد 185

Sheet قاعدة البيانات
A1: التاريخ | B1: كود | C1: الاسم | D1: البيان | E1: المبلغ | F1: الاقساط
A2: 2014-05-03 | B2: 1 | C2: =VLOOKUP(B2,DATA!A:B,2,0) -> محمد 1 | D2: المبلغ | E2: 900
A3: 2014-05-03 | B3: 1 | C3: =VLOOKUP(B3,DATA!A:B,2,0) -> محمد 1 | D3: اقساط | F3: 250
A4: 2014-05-15 | B4: 1 | C4: =VLOOKUP(B4,DATA!A:B,2,0) -> محمد 1 | D4: قسط | F4: 100
A5: 2014-07-17 | B5: 1 | C5: =VLOOKUP(B5,DATA!A:B,2,0) -> محمد 1 | D5: قسط | F5: 300
A6: 2014-07-25 | B6: 1 | C6: =VLOOKUP(B6,DATA!A:B,2,0) -> محمد 1 | D6: قسط | F6: 250
A7: 2014-05-03 | B7: 2 | C7: =VLOOKUP(B7,DATA!A:B,2,0) -> محمد 2 | D7: المبلغ | E7: 200
A8: 2014-05-03 | B8: 2 | C8: =VLOOKUP(B8,DATA!A:B,2,0) -> محمد 2 | D8: اقساط | F8: 75
A9: 2014-05-04 | B9: 2 | C9: =VLOOKUP(B9,DATA!A:B,2,0) -> محمد 2 | D9: قسط | F9: 50
A10: 2014-10-07 | B10: 2 | C10: =VLOOKUP(B10,DATA!A:B,2,0) -> محمد 2 | D10: قسط | F10: 50
A11: 2014-05-03 | B11: 3 | C11: =VLOOKUP(B11,DATA!A:B,2,0) -> محمد 3 | D11: المبلغ | E11: 650
A12: 2014-05-03 | B12: 3 | C12: =VLOOKUP(B12,DATA!A:B,2,0) -> محمد 3 | D12: اقساط | F12: 200
A13: 2014-05-26 | B13: 3 | C13: =VLOOKUP(B13,DATA!A:B,2,0) -> محمد 3 | D13: قسط | F13: 100
A14: 2014-06-27 | B14: 3 | C14: =VLOOKUP(B14,DATA!A:B,2,0) -> محمد 3 | D14: قسط | F14: 100
A15: 2014-09-05 | B15: 3 | C15: =VLOOKUP(B15,DATA!A:B,2,0) -> محمد 3 | D15: قسط | F15: 100
A16: 2014-08-07 | B16: 3 | C16: =VLOOKUP(B16,DATA!A:B,2,0) -> محمد 3 | D16: قسط | F16: 100
A17: 2014-09-24 | B17: 3 | C17: =VLOOKUP(B17,DATA!A:B,2,0) -> محمد 3 | D17: قسط | F17: 50
A18: 2014-05-03 | B18: 4 | C18: =VLOOKUP(B18,DATA!A:B,2,0) -> محمد 4 | D18: المبلغ | E18: 400
A19: 2014-05-03 | B19: 4 | C19: =VLOOKUP(B19,DATA!A:B,2,0) -> محمد 4 | D19: اقساط | F19: 100
A20: 2014-05-26 | B20: 4 | C20: =VLOOKUP(B20,DATA!A:B,2,0) -> محمد 4 | D20: قسط | F20: 50
A21: 2014-06-27 | B21: 4 | C21: =VLOOKUP(B21,DATA!A:B,2,0) -> محمد 4 | D21: قسط | F21: 50
A22: 2014-09-05 | B22: 4 | C22: =VLOOKUP(B22,DATA!A:B,2,0) -> محمد 4 | D22: قسط | F22: 50
A23: 2014-10-07 | B23: 4 | C23: =VLOOKUP(B23,DATA!A:B,2,0) -> محمد 4 | D23: قسط | F23: 50
A24: 2014-10-31 | B24: 4 | C24: =VLOOKUP(B24,DATA!A:B,2,0) -> محمد 4 | D24: قسط | F24: 50
A25: 2014-11-21 | B25: 4 | C25: =VLOOKUP(B25,DATA!A:B,2,0) -> محمد 4 | D25: قسط | F25: 50
A26: 2014-05-03 | B26: 5 | C26: =VLOOKUP(B26,DATA!A:B,2,0) -> حمادة بسام | D26: المبلغ | E26: 2450
A27: 2014-05-04 | B27: 5 | C27: =VLOOKUP(B27,DATA!A:B,2,0) -> حمادة بسام | D27: قسط | F27: 150
A28: 2014-05-03 | B28: 5 | C28: =VLOOKUP(B28,DATA!A:B,2,0) -> حمادة بسام | D28: اقساط | F28: 600
A29: 2014-06-27 | B29: 5 | C29: =VLOOKUP(B29,DATA!A:B,2,0) -> حمادة بسام | D29: قسط | F29: 150
A30: 2014-07-11 | B30: 5 | C30: =VLOOKUP(B30,DATA!A:B,2,0) -> حمادة بسام | D30: قسط | F30: 150
A31: 2014-08-05 | B31: 5 | C31: =VLOOKUP(B31,DATA!A:B,2,0) -> حمادة بسام | D31: قسط | F31: 150
A32: 2014-09-05 | B32: 5 | C32: =VLOOKUP(B32,DATA!A:B,2,0) -> حمادة بسام | D32: قسط | F32: 150
A33: 2014-11-07 | B33: 5 | C33: =VLOOKUP(B33,DATA!A:B,2,0) -> حمادة بسام | D33: قسط | F33: 150
A34: 2014-12-18 | B34: 5 | C34: =VLOOKUP(B34,DATA!A:B,2,0) -> حمادة بسام | D34: قسط | F34: 150
A35: 2015-01-16 | B35: 5 | C35: =VLOOKUP(B35,DATA!A:B,2,0) -> حمادة بسام | D35: قسط | F35: 150
A36: 2015-02-22 | B36: 5 | C36: =VLOOKUP(B36,DATA!A:B,2,0) -> حمادة بسام | D36: قسط | F36: 150
A37: 2015-05-08 | B37: 5 | C37: =VLOOKUP(B37,DATA!A:B,2,0) -> حمادة بسام | D37: قسط | F37: 150
A38: 2015-05-28 | B38: 5 | C38: =VLOOKUP(B38,DATA!A:B,2,0) -> حمادة بسام | F38: 150
A39: 2014-05-03 | B39: 6 | C39: =VLOOKUP(B39,DATA!A:B,2,0) -> محمد 6 | D39: المبلغ | E39: 2030
A40: 2014-05-03 | B40: 6 | C40: =VLOOKUP(B40,DATA!A:B,2,0) -> محمد 6 | D40: اقساط | F40: 450
A41: 2014-05-26 | B41: 6 | C41: =VLOOKUP(B41,DATA!A:B,2,0) -> محمد 6 | D41: قسط | F41: 350
A42: 2014-06-27 | B42: 6 | C42: =VLOOKUP(B42,DATA!A:B,2,0) -> محمد 6 | D42: قسط | F42: 100
A43: 2014-07-11 | B43: 6 | C43: =VLOOKUP(B43,DATA!A:B,2,0) -> محمد 6 | D43: قسط | F43: 125
A44: 2014-08-07 | B44: 6 | C44: =VLOOKUP(B44,DATA!A:B,2,0) -> محمد 6 | D44: قسط | F44: 100
A45: 2014-09-05 | B45: 6 | C45: =VLOOKUP(B45,DATA!A:B,2,0) -> محمد 6 | D45: قسط | F45: 150
A46: 2014-09-24 | B46: 6 | C46: =VLOOKUP(B46,DATA!A:B,2,0) -> محمد 6 | D46: قسط | F46: 175
A47: 2014-10-31 | B47: 6 | C47: =VLOOKUP(B47,DATA!A:B,2,0) -> محمد 6 | D47: قسط | F47: 200
A48: 2014-11-21 | B48: 6 | C48: =VLOOKUP(B48,DATA!A:B,2,0) -> محمد 6 | D48: قسط | F48: 200
A49: 2014-12-24 | B49: 6 | C49: =VLOOKUP(B49,DATA!A:B,2,0) -> محمد 6 | F49: 180
A50: 2014-05-03 | B50: 7 | C50: =VLOOKUP(B50,DATA!A:B,2,0) -> محمد 7 | D50: المبلغ | E50: 450
A51: 2014-05-03 | B51: 7 | C51: =VLOOKUP(B51,DATA!A:B,2,0) -> محمد 7 | D51: اقساط | F51: 200
A52: 2014-06-27 | B52: 7 | C52: =VLOOKUP(B52,DATA!A:B,2,0) -> محمد 7 | D52: قسط | F52: 50
A53: 2014-07-17 | B53: 7 | C53: =VLOOKUP(B53,DATA!A:B,2,0) -> محمد 7 | D53: قسط | F53: 50
A54: 2014-08-15 | B54: 7 | C54: =VLOOKUP(B54,DATA!A:B,2,0) -> محمد 7 | D54: قسط | F54: 50
A55: 2014-09-19 | B55: 7 | C55: =VLOOKUP(B55,DATA!A:B,2,0) -> محمد 7 | D55: قسط | F55: 100
A56: 2014-05-03 | B56: 8 | C56: =VLOOKUP(B56,DATA!A:B,2,0) -> محمد 8 | D56: المبلغ | E56: 210
A57: 2014-05-03 | B57: 8 | C57: =VLOOKUP(B57,DATA!A:B,2,0) -> محمد 8 | D57: اقساط | F57: 80
A58: 2014-06-27 | B58: 8 | C58: =VLOOKUP(B58,DATA!A:B,2,0) -> محمد 8 | D58: قسط | F58: 20
A59: 2014-07-17 | B59: 8 | C59: =VLOOKUP(B59,DATA!A:B,2,0) -> محمد 8 | D59: قسط | F59: 20
A60: 2014-08-15 | B60: 8 | C60: =VLOOKUP(B60,DATA!A:B,2,0) -> محمد 8 | D60: قسط | F60: 20
A61: 2014-05-03 | B61: 9 | C61: =VLOOKUP(B61,DATA!A:B,2,0) -> علياء | D61: اقساط | F61: 200
A62: 2014-05-15 | B62: 9 | C62: =VLOOKUP(B62,DATA!A:B,2,0) -> علياء | D62: قسط | F62: 100
A63: 2014-05-03 | B63: 9 | C63: =VLOOKUP(B63,DATA!A:B,2,0) -> علياء | D63: المبلغ | E63: 525
A64: 2014-06-27 | B64: 9 | C64: =VLOOKUP(B64,DATA!A:B,2,0) -> علياء | D64: قسط | F64: 100
A65: 2014-08-05 | B65: 9 | C65: =VLOOKUP(B65,DATA!A:B,2,0) -> علياء | D65: قسط | F65: 125
A66: 2014-05-03 | B66: 10 | C66: =VLOOKUP(B66,DATA!A:B,2,0) -> محمد 10 | D66: المبلغ | E66: 2500
A67: 2014-05-03 | B67: 10 | C67: =VLOOKUP(B67,DATA!A:B,2,0) -> محمد 10 | D67: اقساط | F67: 400
A68: 2014-05-10 | B68: 10 | C68: =VLOOKUP(B68,DATA!A:B,2,0) -> محمد 10 | D68: قسط | F68: 200
A69: 2014-06-25 | B69: 10 | C69: =VLOOKUP(B69,DATA!A:B,2,0) -> محمد 10 | D69: قسط | F69: 200
A70: 2014-07-25 | B70: 10 | C70: =VLOOKUP(B70,DATA!A:B,2,0) -> محمد 10 | D70: قسط | F70: 200
A71: 2014-06-12 | B71: 11 | C71: =VLOOKUP(B71,DATA!A:B,2,0) -> محمد 11
A72: 2014-05-03 | B72: 11 | C72: =VLOOKUP(B72,DATA!A:B,2,0) -> محمد 11
A73: 2014-05-03 | B73: 12 | C73: =VLOOKUP(B73,DATA!A:B,2,0) -> محمد 12 | D73: باقى صيانة لاب | E73: 80
A74: 2014-05-03 | B74: 13 | C74: =VLOOKUP(B74,DATA!A:B,2,0) -> محمد 13 | D74: المبلغ | E74: 2000
A75: 2014-05-03 | B75: 14 | C75: =VLOOKUP(B75,DATA!A:B,2,0) -> محمد 14 | D75: المبلغ | E75: 2500
A76: 2014-05-03 | B76: 15 | C76: =VLOOKUP(B76,DATA!A:B,2,0) -> هانى صلاح | D76: مقدم | F76: 225
A77: 2014-05-03 | B77: 15 | C77: =VLOOKUP(B77,DATA!A:B,2,0) -> هانى صلاح | D77: المبلغ | E77: 825
A78: 2014-05-30 | B78: 15 | C78: =VLOOKUP(B78,DATA!A:B,2,0) -> هانى صلاح | D78: قسط | F78: 50
A79: 2014-07-01 | B79: 15 | C79: =VLOOKUP(B79,DATA!A:B,2,0) -> هانى صلاح | D79: قسط | F79: 75
A80: 2014-08-08 | B80: 15 | C80: =VLOOKUP(B80,DATA!A:B,2,0) -> هانى صلاح | D80: قسط | F80: 50
A81: 2014-10-01 | B81: 15 | C81: =VLOOKUP(B81,DATA!A:B,2,0) -> هانى صلاح | D81: قسط | F81: 50
A82: 2014-05-03 | B82: 16 | C82: =VLOOKUP(B82,DATA!A:B,2,0) -> محمد 16 | D82: المبلغ | E82: 1050
A83: 2014-05-03 | B83: 16 | C83: =VLOOKUP(B83,DATA!A:B,2,0) -> محمد 16 | D83: مقدم | F83: 250
A84: 2014-05-30 | B84: 16 | C84: =VLOOKUP(B84,DATA!A:B,2,0) -> محمد 16 | D84: قسط | F84: 75
A85: 2014-07-01 | B85: 16 | C85: =VLOOKUP(B85,DATA!A:B,2,0) -> محمد 16 | D85: قسط | F85: 50
A86: 2014-08-08 | B86: 16 | C86: =VLOOKUP(B86,DATA!A:B,2,0) -> محمد 16 | D86: قسط | F86: 75
A87: 2014-10-01 | B87: 16 | C87: =VLOOKUP(B87,DATA!A:B,2,0) -> محمد 16 | D87: قسط | F87: 75
A88: 2014-05-21 | B88: 17 | C88: =VLOOKUP(B88,DATA!A:B,2,0) -> محمد 17 | D88: موبايل | E88: 600
A89: 2014-05-03 | B89: 17 | C89: =VLOOKUP(B89,DATA!A:B,2,0) -> محمد 17 | D89: المبلغ | E89: 550
A90: 2014-05-03 | B90: 17 | C90: =VLOOKUP(B90,DATA!A:B,2,0) -> محمد 17 | D90: اقساط | F90: 150
A91: 2014-08-04 | B91: 17 | C91: =VLOOKUP(B91,DATA!A:B,2,0) -> محمد 17 | D91: قسط | F91: 150
A92: 2014-09-30 | B92: 17 | C92: =VLOOKUP(B92,DATA!A:B,2,0) -> محمد 17 | D92: قسط | F92: 150
A93: 2014-05-03 | B93: 18 | C93: =VLOOKUP(B93,DATA!A:B,2,0) -> محمد 18 | D93: المبلغ | E93: 550
A94: 2014-05-30 | B94: 18 | C94: =VLOOKUP(B94,DATA!A:B,2,0) -> محمد 18 | D94: قسط | F94: 100
A95: 2014-07-01 | B95: 18 | C95: =VLOOKUP(B95,DATA!A:B,2,0) -> محمد 18 | D95: قسط | F95: 100
A96: 2014-08-08 | B96: 18 | C96: =VLOOKUP(B96,DATA!A:B,2,0) -> محمد 18 | D96: قسط | F96: 100
A97: 2014-08-08 | B97: 18 | C97: =VLOOKUP(B97,DATA!A:B,2,0) -> محمد 18 | D97: قسط | F97: 100
A98: 2014-05-03 | B98: 19 | C98: =VLOOKUP(B98,DATA!A:B,2,0) -> محمد 19 | D98: المبلغ | E98: 850
A99: 2014-05-03 | B99: 20 | C99: =VLOOKUP(B99,DATA!A:B,2,0) -> محمد 20 | D99: المبلغ | E99: 4000
A100: 2014-05-03 | B100: 20 | C100: =VLOOKUP(B100,DATA!A:B,2,0) -> محمد 20 | D100: اقساط | F100: 500
A101: 2014-06-07 | B101: 20 | C101: =VLOOKUP(B101,DATA!A:B,2,0) -> محمد 20 | D101: قسط | F101: 250
A102: 2014-07-25 | B102: 20 | C102: =VLOOKUP(B102,DATA!A:B,2,0) -> محمد 20 | D102: قسط | F102: 250
A103: 2014-05-03 | B103: 21 | C103: =VLOOKUP(B103,DATA!A:B,2,0) -> مصطفى ليلة | D103: المبلغ | E103: 300
A104: 2014-05-03 | B104: 21 | C104: =VLOOKUP(B104,DATA!A:B,2,0) -> مصطفى ليلة | D104: اقساط | F104: 100
A105: 2014-05-06 | B105: 21 | C105: =VLOOKUP(B105,DATA!A:B,2,0) -> مصطفى ليلة | D105: قسط | F105: 50
A106: 2014-05-12 | B106: 21 | C106: =VLOOKUP(B106,DATA!A:B,2,0) -> مصطفى ليلة | D106: صب تايجر+فلاشة | E106: 310
A107: 2014-05-25 | B107: 21 | C107: =VLOOKUP(B107,DATA!A:B,2,0) -> مصطفى ليلة | D107: قسط | F107: 50
A108: 2014-06-01 | B108: 21 | C108: =VLOOKUP(B108,DATA!A:B,2,0) -> مصطفى ليلة | D108: قسط | F108: 100
A109: 2014-06-29 | B109: 21 | C109: =VLOOKUP(B109,DATA!A:B,2,0) -> مصطفى ليلة | D109: قسط | F109: 50
A110: 2014-07-12 | B110: 21 | C110: =VLOOKUP(B110,DATA!A:B,2,0) -> مصطفى ليلة | D110: قسط | F110: 50
A111: 2014-07-25 | B111: 21 | C111: =VLOOKUP(B111,DATA!A:B,2,0) -> مصطفى ليلة | D111: قسط | F111: 50
A112: 2014-08-11 | B112: 21 | C112: =VLOOKUP(B112,DATA!A:B,2,0) -> مصطفى ليلة | D112: قسط | F112: 50
A113: 2014-09-01 | B113: 21 | C113: =VLOOKUP(B113,DATA!A:B,2,0) -> مصطفى ليلة | D113: قسط | F113: 50
A114: 2014-10-01 | B114: 21 | C114: =VLOOKUP(B114,DATA!A:B,2,0) -> مصطفى ليلة | D114: قسط | F114: 60
A115: 2014-05-03 | B115: 22 | C115: =VLOOKUP(B115,DATA!A:B,2,0) -> محمد 22 | D115: المبلغ | E115: 1100
A116: 2014-05-03 | B116: 22 | C116: =VLOOKUP(B116,DATA!A:B,2,0) -> محمد 22 | D116: اقساط | F116: 300
A117: 2014-06-27 | B117: 22 | C117: =VLOOKUP(B117,DATA!A:B,2,0) -> محمد 22 | D117: قسط | F117: 100
A118: 2014-07-11 | B118: 22 | C118: =VLOOKUP(B118,DATA!A:B,2,0) -> محمد 22 | D118: قسط | F118: 100
A119: 2014-08-05 | B119: 22 | C119: =VLOOKUP(B119,DATA!A:B,2,0) -> محمد 22 | F119: 100
A120: 2014-09-19 | B120: 22 | C120: =VLOOKUP(B120,DATA!A:B,2,0) -> محمد 22 | D120: قسط | F120: 100
A121: 2014-10-24 | B121: 22 | C121: =VLOOKUP(B121,DATA!A:B,2,0) -> محمد 22 | D121: قسط | F121: 100
A122: 2014-11-21 | B122: 22 | C122: =VLOOKUP(B122,DATA!A:B,2,0) -> محمد 22 | D122: قسط | F122: 100
A123: 2014-12-18 | B123: 22 | C123: =VLOOKUP(B123,DATA!A:B,2,0) -> محمد 22 | D123: قسط | F123: 100
A124: 2015-01-23 | B124: 22 | C124: =VLOOKUP(B124,DATA!A:B,2,0) -> محمد 22 | D124: قسط | F124: 100
A125: 2014-05-03 | B125: 23 | C125: =VLOOKUP(B125,DATA!A:B,2,0) -> محمد 23 | D125: المبلغ | E125: 700
A126: 2014-05-03 | B126: 23 | C126: =VLOOKUP(B126,DATA!A:B,2,0) -> محمد 23 | D126: اقساط | F126: 150
A127: 2014-05-04 | B127: 23 | C127: =VLOOKUP(B127,DATA!A:B,2,0) -> محمد 23 | D127: قسط | F127: 50
A128: 2014-05-26 | B128: 23 | C128: =VLOOKUP(B128,DATA!A:B,2,0) -> محمد 23 | D128: قسط | F128: 50
A129: 2014-06-27 | B129: 23 | C129: =VLOOKUP(B129,DATA!A:B,2,0) -> محمد 23 | D129: قسط | F129: 50
A130: 2014-07-25 | B130: 23 | C130: =VLOOKUP(B130,DATA!A:B,2,0) -> محمد 23 | D130: قسط | F130: 50
A131: 2014-08-29 | B131: 23 | C131: =VLOOKUP(B131,DATA!A:B,2,0) -> محمد 23 | D131: قسط | F131: 50
A132: 2014-09-19 | B132: 23 | C132: =VLOOKUP(B132,DATA!A:B,2,0) -> محمد 23 | D132: قسط | F132: 50
A133: 2014-09-24 | B133: 23 | C133: =VLOOKUP(B133,DATA!A:B,2,0) -> محمد 23 | D133: قسط | F133: 50
A134: 2014-10-24 | B134: 23 | C134: =VLOOKUP(B134,DATA!A:B,2,0) -> محمد 23 | D134: قسط | F134: 50
A135: 2014-12-18 | B135: 23 | C135: =VLOOKUP(B135,DATA!A:B,2,0) -> محمد 23 | D135: قسط | F135: 50
A136: 2015-01-23 | B136: 23 | C136: =VLOOKUP(B136,DATA!A:B,2,0) -> محمد 23 | D136: قسط | F136: 50
A137: 2015-03-14 | B137: 23 | C137: =VLOOKUP(B137,DATA!A:B,2,0) -> محمد 23 | D137: قسط | F137: 50
A138: 2014-05-03 | B138: 24 | C138: =VLOOKUP(B138,DATA!A:B,2,0) -> محمد 24 | D138: المبلغ | E138: 1250
A139: 2014-05-03 | B139: 24 | C139: =VLOOKUP(B139,DATA!A:B,2,0) -> محمد 24 | D139: اقساط | F139: 200
A140: 2014-06-09 | B140: 24 | C140: =VLOOKUP(B140,DATA!A:B,2,0) -> محمد 24 | D140: قسط | F140: 100
A141: 2014-07-04 | B141: 24 | C141: =VLOOKUP(B141,DATA!A:B,2,0) -> محمد 24 | D141: قسط | F141: 100
A142: 2014-07-17 | B142: 24 | C142: =VLOOKUP(B142,DATA!A:B,2,0) -> محمد 24 | D142: قسط | F142: 100
A143: 2014-07-04 | B143: 24 | C143: =VLOOKUP(B143,DATA!A:B,2,0) -> محمد 24 | D143: قسط
A144: 2014-08-31 | B144: 24 | C144: =VLOOKUP(B144,DATA!A:B,2,0) -> محمد 24 | D144: قسط | F144: 100
A145: 2014-10-09 | B145: 24 | C145: =VLOOKUP(B145,DATA!A:B,2,0) -> محمد 24 | D145: قسط | F145: 100
A146: 2014-10-28 | B146: 24 | C146: =VLOOKUP(B146,DATA!A:B,2,0) -> محمد 24 | D146: قسط | F146: 100
A147: 2014-12-07 | B147: 24 | C147: =VLOOKUP(B147,DATA!A:B,2,0) -> محمد 24 | D147: قسط | F147: 100
A148: 2014-12-07 | B148: 24 | C148: =VLOOKUP(B148,DATA!A:B,2,0) -> محمد 24 | F148: 100
A149: 2015-03-26 | B149: 24 | C149: =VLOOKUP(B149,DATA!A:B,2,0) -> محمد 24 | D149: قسط | F149: 100
A150: 2015-04-05 | B150: 24 | C150: =VLOOKUP(B150,DATA!A:B,2,0) -> محمد 24 | D150: قسط | F150: 150
A151: 2014-05-03 | B151: 25 | C151: =VLOOKUP(B151,DATA!A:B,2,0) -> نهاد | D151: اقساط | F151: 200
A152: 2014-05-03 | B152: 25 | C152: =VLOOKUP(B152,DATA!A:B,2,0) -> نهاد | D152: المبلغ | E152: 1450
A153: 2014-05-04 | B153: 25 | C153: =VLOOKUP(B153,DATA!A:B,2,0) -> نهاد | D153: قسط | F153: 100
A154: 2014-05-26 | B154: 25 | C154: =VLOOKUP(B154,DATA!A:B,2,0) -> نهاد | D154: قسط | F154: 100
A155: 2014-06-27 | B155: 25 | C155: =VLOOKUP(B155,DATA!A:B,2,0) -> نهاد | D155: قسط | F155: 100
A156: 2014-07-25 | B156: 25 | C156: =VLOOKUP(B156,DATA!A:B,2,0) -> نهاد | D156: قسط | F156: 100
A157: 2014-08-06 | B157: 25 | C157: =VLOOKUP(B157,DATA!A:B,2,0) -> نهاد | D157: مقدم | F157: 400
A158: 2014-08-29 | B158: 25 | C158: =VLOOKUP(B158,DATA!A:B,2,0) -> نهاد | D158: قسط | F158: 100
A159: 2014-09-24 | B159: 25 | C159: =VLOOKUP(B159,DATA!A:B,2,0) -> نهاد | D159: قسط | F159: 100
A160: 2014-11-21 | B160: 25 | C160: =VLOOKUP(B160,DATA!A:B,2,0) -> نهاد | D160: قسط | F160: 150
A161: 2014-05-03 | B161: 26 | C161: =VLOOKUP(B161,DATA!A:B,2,0) -> محمد 26
A162: 2014-05-03 | B162: 27 | C162: =VLOOKUP(B162,DATA!A:B,2,0) -> سماح | D162: المبلغ | E162: 500
A163: 2014-05-13 | B163: 27 | C163: =VLOOKUP(B163,DATA!A:B,2,0) -> سماح | D163: باقى سلك النت -ماوس | E163: 35
A164: 2014-12-07 | B164: 27 | C164: =VLOOKUP(B164,DATA!A:B,2,0) -> سماح | D164: هيدفون | E164: 35
A165: 2014-06-01 | B165: 27 | C165: =VLOOKUP(B165,DATA!A:B,2,0) -> سماح | D165: ماوس | E165: 20
A166: 2014-06-26 | B166: 27 | C166: =VLOOKUP(B166,DATA!A:B,2,0) -> سماح | D166: صب | E166: 110
A167: 2014-06-27 | B167: 27 | C167: =VLOOKUP(B167,DATA!A:B,2,0) -> سماح | D167: موبايل جلاكسى | E167: 1300
A168: 2014-08-12 | B168: 27 | C168: =VLOOKUP(B168,DATA!A:B,2,0) -> سماح | D168: تنزيل | F168: 1410
A169: 2014-08-12 | B169: 27 | C169: =VLOOKUP(B169,DATA!A:B,2,0) -> سماح | D169: ماوس | E169: 10
A170: 2014-08-22 | B170: 27 | C170: =VLOOKUP(B170,DATA!A:B,2,0) -> سماح | D170: فلاشة 8 كينج ستون | E170: 45
A171: 2015-05-30 | B171: 27 | C171: =VLOOKUP(B171,DATA!A:B,2,0) -> سماح | D171: 2لوحة مفاتيح | E171: 60
B172: 27 | C172: =VLOOKUP(B172,DATA!A:B,2,0) -> سماح
A173: 2014-05-03 | B173: 28 | C173: =VLOOKUP(B173,DATA!A:B,2,0) -> محمد 28 | D173: المبلغ | E173: 560
A174: 2014-05-03 | B174: 28 | C174: =VLOOKUP(B174,DATA!A:B,2,0) -> محمد 28 | D174: اقساط | F174: 210
A175: 2014-05-26 | B175: 28 | C175: =VLOOKUP(B175,DATA!A:B,2,0) -> محمد 28 | D175: قسط | F175: 50
A176: 2014-08-02 | B176: 28 | C176: =VLOOKUP(B176,DATA!A:B,2,0) -> محمد 28 | D176: قسط | F176: 100
A177: 2014-08-30 | B177: 28 | C177: =VLOOKUP(B177,DATA!A:B,2,0) -> محمد 28 | D177: قسط | F177: 100
A178: 2014-10-30 | B178: 28 | C178: =VLOOKUP(B178,DATA!A:B,2,0) -> محمد 28 | E178: 1000
A179: 2014-11-18 | B179: 28 | C179: =VLOOKUP(B179,DATA!A:B,2,0) -> محمد 28 | E179: 1000
A180: 2014-12-22 | B180: 28 | C180: =VLOOKUP(B180,DATA!A:B,2,0) -> محمد 28 | F180: 1000
A181: 2015-04-28 | B181: 28 | C181: =VLOOKUP(B181,DATA!A:B,2,0) -> محمد 28 | F181: 1000
A182: 2014-05-03 | B182: 29 | C182: =VLOOKUP(B182,DATA!A:B,2,0) -> سلف | D182: سلف | E182: 4500
A183: 2014-07-19 | B183: 29 | C183: =VLOOKUP(B183,DATA!A:B,2,0) -> سلف | F183: 2000
A184: 2014-05-10 | B184: 30 | C184: =VLOOKUP(B184,DATA!A:B,2,0) -> محمد 30 | D184: موبايل | E184: 1450
A185: 2014-05-10 | B185: 30 | C185: =VLOOKUP(B185,DATA!A:B,2,0) -> محمد 30 | D185: مقدم | F185: 150
A186: 2014-08-08 | B186: 30 | C186: =VLOOKUP(B186,DATA!A:B,2,0) -> محمد 30 | D186: قسط | F186: 200
A187: 2014-10-01 | B187: 30 | C187: =VLOOKUP(B187,DATA!A:B,2,0) -> محمد 30 | D187: قسط | F187: 100
A188: 2014-05-14 | B188: 31 | C188: =VLOOKUP(B188,DATA!A:B,2,0) -> محمد 31
A189: 2014-05-13 | B189: 33 | C189: =VLOOKUP(B189,DATA!A:B,2,0) -> محمد 33 | D189: مبرد لاب+كسوة غسالة+كابل شاشة+نسخه | E189: 160
A190: 2014-12-17 | B190: 33 | C190: =VLOOKUP(B190,DATA!A:B,2,0) -> محمد 33 | D190: قسط | F190: 100
B191: 34 | C191: =VLOOKUP(B191,DATA!A:B,2,0) -> باسم النجار | D191: باقى صب | E191: 60
B192: 36 | C192: =VLOOKUP(B192,DATA!A:B,2,0) -> محمد 36 | D192: باقى صب صاحبه | E192: 90
A193: 2014-05-22 | B193: 36 | C193: =VLOOKUP(B193,DATA!A:B,2,0) -> محمد 36 | D193: قسط | F193: 40
A194: 2014-10-28 | B194: 36 | C194: =VLOOKUP(B194,DATA!A:B,2,0) -> محمد 36 | D194: قسط | F194: 50
A195: 2014-05-20 | B195: 37 | C195: =VLOOKUP(B195,DATA!A:B,2,0) -> محمد 37 | D195: موبايل | E195: 1800
A196: 2014-07-01 | B196: 37 | C196: =VLOOKUP(B196,DATA!A:B,2,0) -> محمد 37 | D196: قسط | F196: 150
A197: 2014-06-01 | B197: 38 | C197: =VLOOKUP(B197,DATA!A:B,2,0) -> محمد 38 | D197: كريازى 6درج | E197: 4000
A198: 2014-06-01 | B198: 38 | C198: =VLOOKUP(B198,DATA!A:B,2,0) -> محمد 38 | D198: مقدم | F198: 1000
A199: 2014-06-29 | B199: 38 | C199: =VLOOKUP(B199,DATA!A:B,2,0) -> محمد 38 | D199: قسط | F199: 200
A200: 2014-08-05 | B200: 38 | C200: =VLOOKUP(B200,DATA!A:B,2,0) -> محمد 38 | D200: قسط | F200: 200
... 1786 more rows
